bitfinex/quotes_BTCUSD_20240703
["timestamp","ask_amount","ask_price","bid_price","bid_amount"]
[1720023190864,1.0114892,60405.0,60404.0,0.000913]
[1720023191648,1.0475105,60405.0,60404.0,0.000913]
[1720023191877,0.9050105,60405.0,60404.0,0.000913]
[1720023192255,0.84085446,60405.0,60404.0,0.000913]
[1720023192502,0.904145,60405.0,60404.0,0.000913]
[1720023192702,0.84085446,60405.0,60404.0,0.000913]
[1720023192843,0.90414484,60405.0,60404.0,0.000913]
[1720023195647,0.80483316,60405.0,60404.0,0.000913]
[1720023195850,1.10331668,60405.0,60404.0,0.000913]
[1720023196534,1.1922763,60405.0,60404.0,0.000913]
[1720023196739,1.1912763,60405.0,60404.0,0.002913]
[1720023196943,1.1912763,60405.0,60404.0,0.000913]
[1720023197094,1.1922763,60405.0,60404.0,0.000913]
[1720023197295,1.1922763,60405.0,60404.0,0.002913]
[1720023197511,1.1912763,60405.0,60404.0,0.002913]
[1720023198256,1.16550965,60405.0,60404.0,0.002913]
[1720023198658,1.02319575,60405.0,60404.0,0.002913]
[1720023198857,1.16542413,60405.0,60404.0,0.000913]
[1720023199237,1.16542413,60405.0,60404.0,0.002913]
[1720023200022,1.16542413,60405.0,60404.0,0.000913]
[1720023200217,1.16551314,60405.0,60404.0,0.000913]
[1720023200419,1.46551314,60405.0,60404.0,0.002913]
[1720023201754,1.46651314,60405.0,60404.0,0.002913]
[1720023201958,1.32419575,60405.0,60404.0,0.002913]
[1720023202173,1.46641075,60405.0,60404.0,0.002913]
[1720023202568,1.46741075,60405.0,60404.0,0.002913]
[1720023202931,1.46741075,60405.0,60404.0,0.000913]
[1720023203071,1.46841075,60405.0,60404.0,0.000913]
[1720023203585,1.46741075,60405.0,60404.0,0.000913]
[1720023204009,1.62777381,60405.0,60404.0,0.000913]
[1720023204227,1.62877381,60405.0,60404.0,0.001913]
[1720023204785,1.78907261,60405.0,60404.0,0.001913]
[1720023205329,1.78689095,60405.0,60404.0,0.001913]
[1720023205709,1.78689301,60405.0,60404.0,0.001913]
[1720023207661,2.08689301,60405.0,60404.0,0.001913]
[1720023208570,2.08699984,60405.0,60404.0,0.001913]
[1720023208779,2.08699984,60405.0,60384.0,0.000913]
[1720023208780,0.00387,60385.0,60384.0,0.000913]
[1720023208904,0.01414866,60385.0,60384.0,0.000913]
[1720023209106,1.09468198,60385.0,60384.0,0.000913]
[1720023209321,1.19468198,60385.0,60384.0,0.000913]
[1720023209554,1.35918198,60385.0,60384.0,0.000913]
[1720023209726,1.44766142,60385.0,60384.0,0.000913]
[1720023209928,0.30387,60382.0,60381.0,0.000913]
[1720023210126,1.76684635,60382.0,60381.0,0.000913]
[1720023210466,2.14819098,60382.0,60381.0,0.000913]
[1720023210666,2.17119098,60382.0,60381.0,0.000913]
[1720023211218,2.25967042,60382.0,60381.0,0.000913]
[1720023211443,2.18578805,60382.0,60381.0,0.000913]
[1720023211646,2.48578805,60382.0,60381.0,0.000913]
[1720023211957,2.63558805,60382.0,60381.0,0.000913]
[1720023212531,0.98264865,60382.0,60381.0,0.000913]
[1720023212699,0.53432102,60382.0,60381.0,0.000913]
[1720023213004,0.44111845,60382.0,60381.0,0.000913]
[1720023213158,0.41811845,60382.0,60381.0,0.000913]
[1720023213390,0.16507789,60382.0,60381.0,0.202913]
[1720023213788,0.017275,60382.0,60381.0,0.202913]
[1720023214099,0.013275,60382.0,60381.0,0.202913]
[1720023214267,0.017275,60382.0,60381.0,0.202913]
[1720023214469,0.004,60382.0,60381.0,0.202913]
[1720023214937,0.00787,60382.0,60381.0,0.001913]
[1720023215086,0.1435667,60382.0,60381.0,0.001913]
[1720023215279,0.1435667,60382.0,60381.0,0.000913]
[1720023215700,0.1425667,60382.0,60381.0,0.000913]
[1720023216086,0.1528437,60382.0,60381.0,0.000913]
[1720023216530,0.1498437,60382.0,60381.0,0.000913]
[1720023217235,0.1498437,60382.0,60381.0,0.012913]
[1720023217236,0.1508437,60382.0,60381.0,0.012913]
[1720023217583,0.101,60382.0,60381.0,0.000913]
[1720023217788,0.14947184,60382.0,60381.0,0.000913]
[1720023217993,0.15047184,60382.0,60381.0,0.008913]
[1720023218213,0.15161783,60382.0,60381.0,0.017913]
[1720023218633,0.15161783,60382.0,60381.0,0.009913]
[1720023218634,0.15061783,60382.0,60381.0,0.009913]
[1720023218855,0.1112769,60382.0,60381.0,0.008913]
[1720023219009,0.0112769,60382.0,60381.0,0.008913]
[1720023219348,0.002,60382.0,60381.0,0.018913]
[1720023219895,0.0021,60382.0,60381.0,0.018913]
[1720023220118,0.0021,60382.0,60381.0,0.270443]
[1720023220119,0.01237757,60382.0,60381.0,0.270443]
[1720023220834,0.01237791,60382.0,60381.0,0.270443]
[1720023221040,0.01237791,60382.0,60381.0,0.4307418]
[1720023221241,0.01247791,60382.0,60381.0,0.4307418]
[1720023222226,0.0022,60382.0,60381.0,0.4307418]
[1720023222430,0.01137056,60400.0,60394.0,0.0839]
[1720023222630,0.01137056,60400.0,60395.0,0.16793]
[1720023222631,0.0314214,60399.0,60395.0,0.16793]
[1720023222837,0.00029405,60402.0,60396.0,0.05583]
[1720023223034,0.03141573,60401.0,60396.0,0.05583]
[1720023223331,0.38337075,60405.0,60396.0,0.05583]
[1720023223530,0.03067782,60404.0,60396.0,0.05583]
[1720023223729,0.03067782,60403.0,60396.0,0.05583]
[1720023223941,0.03067562,60402.0,60396.0,0.05583]
[1720023224112,0.03067562,60401.0,60397.0,0.0881]
[1720023224318,0.1,60403.0,60397.0,0.0881]
[1720023224521,0.03054929,60402.0,60397.0,0.0881]
[1720023224721,0.03054929,60401.0,60397.0,0.0881]
[1720023224935,0.03054929,60400.0,60397.0,0.0881]
[1720023225139,0.27877521,60405.0,60397.0,0.0881]
[1720023225348,0.02749059,60404.0,60397.0,0.0881]
[1720023225527,0.02749059,60403.0,60397.0,0.0881]
[1720023225722,0.02749059,60402.0,60397.0,0.0881]
[1720023225925,0.02749059,60401.0,60397.0,0.0881]
[1720023226131,0.02749059,60400.0,60397.0,0.0881]
[1720023226418,0.00387,60402.0,60397.0,0.0921]
[1720023226594,0.02750491,60401.0,60397.0,0.0921]
[1720023226811,0.02750491,60400.0,60397.0,0.092]
[1720023227160,0.15067729,60399.0,60397.0,0.0039]
[1720023227410,0.12750729,60398.0,60397.0,0.0039]
[1720023227824,0.12750729,60398.0,60397.0,0.006]
[1720023228400,0.02750729,60398.0,60397.0,0.006]
[1720023228603,0.12750729,60398.0,60391.0,0.05583]
[1720023228798,0.12750729,60397.0,60391.0,0.05583]
[1720023229021,0.02750729,60396.0,60390.0,0.1105]
[1720023229225,0.02750729,60395.0,60390.0,0.1105]
[1720023229357,0.1,60397.0,60393.0,0.05583]
[1720023229563,0.02727087,60396.0,60393.0,0.05583]
[1720023229765,0.1,60397.0,60393.0,0.05583]
[1720023229766,0.02727087,60395.0,60394.0,0.0905]
[1720023230166,0.01166461,60400.0,60394.0,0.0905]
[1720023230468,0.02724615,60399.0,60394.0,0.0905]
[1720023230666,0.01166461,60400.0,60394.0,0.0905]
[1720023230866,0.02724548,60398.0,60397.0,0.1071]
[1720023231331,0.1,60404.0,60398.0,0.0914]
[1720023231558,0.02702515,60403.0,60398.0,0.0914]
[1720023231733,0.02702515,60402.0,60398.0,0.0914]
[1720023231939,0.02702515,60401.0,60398.0,0.0914]
[1720023232281,0.02702515,60400.0,60398.0,0.0914]
[1720023232446,0.02702515,60399.0,60398.0,0.0914]
[1720023232678,0.02702515,60399.0,60398.0,0.0913]
[1720023233486,0.1,60404.0,60398.0,0.0913]
[1720023233679,0.02136771,60403.0,60398.0,0.0913]
[1720023233879,0.02136771,60402.0,60398.0,0.0913]
[1720023234294,0.02136771,60401.0,60398.0,0.0913]
[1720023234445,0.02136771,60400.0,60398.0,0.0913]
[1720023234650,0.02136771,60399.0,60398.0,0.1003]
[1720023235030,0.02136771,60399.0,60391.0,0.05583]
[1720023235236,0.1,60404.0,60392.0,0.16613]
[1720023235237,0.02523771,60398.0,60392.0,0.16613]
[1720023235465,0.02136771,60397.0,60392.0,0.1103]
[1720023235675,0.11647,60401.0,60393.0,0.0917]
[1720023235952,0.24167,60397.0,60389.0,0.26243]
[1720023236102,0.00387,60395.0,60389.0,0.26243]
[1720023236315,0.00387,60395.0,60389.0,0.2066]
[1720023236522,0.1,60396.0,60389.0,0.2066]
[1720023236523,0.10387,60396.0,60389.0,0.2066]
[1720023236738,0.1,60396.0,60389.0,0.2066]
[1720023237323,0.10387,60396.0,60389.0,0.2066]
[1720023237926,0.00387,60395.0,60389.0,0.2066]
[1720023238132,0.1,60396.0,60392.0,0.01]
[1720023238338,0.10387,60396.0,60392.0,0.01]
[1720023238537,0.10387,60396.0,60389.0,0.2066]
[1720023238920,0.10387,60396.0,60392.0,0.013]
[1720023239127,0.00387,60395.0,60389.0,0.2146]
[1720023239295,0.10387,60396.0,60389.0,0.2146]
[1720023239523,0.00387,60395.0,60392.0,0.01]
[1720023239787,0.10387,60396.0,60392.0,0.01]
[1720023239987,0.1,60396.0,60392.0,0.01]
[1720023240153,0.02147239,60395.0,60392.0,0.01]
[1720023240439,0.1,60396.0,60389.0,0.26243]
[1720023240658,0.02153194,60395.0,60389.0,0.26243]
[1720023240875,0.00387,60397.0,60389.0,0.2166]
[1720023241104,0.02153202,60396.0,60389.0,0.2166]
[1720023241327,0.02153202,60395.0,60389.0,0.27243]
[1720023241592,0.02153202,60394.0,60392.0,0.008]
[1720023241806,0.0001,60399.0,60392.0,0.008]
[1720023241807,0.00397,60399.0,60392.0,0.008]
[1720023242045,0.02154272,60398.0,60390.0,0.05583]
[1720023242260,0.0001,60399.0,60391.0,0.05583]
[1720023242428,0.02154218,60397.0,60391.0,0.05583]
[1720023242632,0.02139363,60396.0,60393.0,0.05583]
[1720023242931,0.02139363,60395.0,60392.0,0.011]
[1720023243091,0.02139363,60394.0,60392.0,0.015]
[1720023243287,0.0001,60399.0,60392.0,0.015]
[1720023243490,0.0213937,60398.0,60394.0,0.087]
[1720023243811,0.0213937,60397.0,60394.0,0.087]
[1720023243971,0.0001,60399.0,60394.0,0.087]
[1720023243972,0.0213937,60396.0,60394.0,0.087]
[1720023244179,0.0213937,60395.0,60394.0,0.087]
[1720023244381,0.0213937,60398.0,60394.0,0.087]
[1720023244692,0.0213937,60397.0,60394.0,0.087]
[1720023244896,0.0213937,60396.0,60394.0,0.087]
[1720023245213,0.00094,60399.0,60394.0,0.087]
[1720023245436,0.02150196,60398.0,60394.0,0.087]
[1720023245611,0.02150196,60397.0,60394.0,0.087]
[1720023245818,0.02150196,60396.0,60394.0,0.087]
[1720023246004,0.02150196,60395.0,60394.0,0.087]
[1720023246205,0.02150196,60395.0,60394.0,0.095]
[1720023246816,0.02150196,60395.0,60394.0,0.087]
[1720023247010,0.02150196,60395.0,60394.0,0.098]
[1720023247972,0.02150196,60395.0,60394.0,0.112]
[1720023248393,0.01632826,60395.0,60394.0,0.098]
[1720023248557,0.01632826,60395.0,60394.0,0.101]
[1720023249003,0.01632826,60395.0,60394.0,0.115]
[1720023249487,0.01632826,60395.0,60394.0,0.101]
[1720023249791,0.01632826,60395.0,60394.0,0.114]
[1720023250373,0.01632826,60395.0,60394.0,0.101]
[1720023250674,0.01632826,60395.0,60394.0,0.115]
[1720023251093,0.02019826,60395.0,60394.0,0.028]
[1720023251686,0.00387,60395.0,60394.0,0.014]
[1720023251905,0.02010336,60395.0,60394.0,0.028]
[1720023252308,0.02010336,60395.0,60394.0,0.014]
[1720023252692,0.02010336,60395.0,60394.0,0.028]
[1720023253917,0.65004441,60395.0,60394.0,0.028]
[1720023254097,0.74086891,60395.0,60394.0,0.028]
[1720023254293,3.47980091,60395.0,60394.0,0.028]
[1720023254568,3.43086691,60395.0,60394.0,0.028]
[1720023255000,3.34915794,60395.0,60394.0,0.028]
[1720023255171,3.43121547,60395.0,60394.0,0.028]
[1720023255413,3.43121547,60395.0,60394.0,0.014]
[1720023255414,3.5915786,60395.0,60394.0,0.014]
[1720023255820,1.0015806,60395.0,60394.0,0.014]
[1720023256064,0.30387,60393.0,60392.0,0.000924]
[1720023256261,3.45870255,60393.0,60392.0,0.000924]
[1720023256430,3.51029369,60393.0,60392.0,0.000924]
[1720023256699,3.57599674,60393.0,60392.0,0.000924]
[1720023257653,3.57699674,60393.0,60392.0,0.001924]
[1720023258064,3.49493914,60393.0,60392.0,0.001924]
[1720023258226,3.5767972,60393.0,60392.0,0.001924]
[1720023259135,3.5757972,60393.0,60392.0,0.000924]
[1720023259341,3.5757972,60393.0,60392.0,0.001924]
[1720023259342,3.5767972,60393.0,60392.0,0.001924]
[1720023259607,3.5777972,60393.0,60392.0,0.001924]
[1720023259954,3.5757972,60393.0,60392.0,0.000924]
[1720023260151,3.5767972,60393.0,60392.0,0.002924]
[1720023260361,3.89845906,60393.0,60392.0,0.002924]
[1720023260556,3.89856048,60393.0,60392.0,0.002924]
[1720023261381,3.816601,60393.0,60392.0,0.002924]
[1720023261543,3.89855419,60393.0,60392.0,0.002924]
[1720023261977,3.89855419,60393.0,60381.0,0.000913]
[1720023261978,0.00387,60382.0,60381.0,0.000913]
[1720023262265,0.00387,60382.0,60374.0,0.0922]
[1720023262266,0.00387,60375.0,60374.0,0.08419122]
[1720023262475,0.02016909,60375.0,60374.0,0.08419122]
[1720023262804,0.02016909,60375.0,60369.0,0.1156]
[1720023262805,0.00387,60371.0,60369.0,0.1156]
[1720023263009,0.01629909,60370.0,60369.0,0.1156]
[1720023263692,0.00387,60371.0,60369.0,0.1156]
[1720023263897,0.00387,60368.0,60360.0,0.1128]
[1720023264102,0.211,60374.0,60360.0,0.1128]
[1720023264103,0.00387,60364.0,60360.0,0.1128]
[1720023264346,0.00387,60362.0,60360.0,0.1128]
[1720023264682,0.02598494,60361.0,60360.0,0.1128]
[1720023265053,0.00387,60362.0,60358.0,0.0889]
[1720023265257,0.02304318,60361.0,60358.0,0.0889]
[1720023265451,0.02304318,60360.0,60358.0,0.0889]
[1720023265690,0.02304318,60359.0,60358.0,0.0889]
[1720023266518,0.02304318,60359.0,60358.0,0.0979]
[1720023266934,0.02304318,60359.0,60358.0,0.0889]
[1720023267135,0.00387,60363.0,60358.0,0.0889]
[1720023267341,0.001,60359.0,60358.0,0.0979]
[1720023268514,0.002,60359.0,60358.0,0.1109]
[1720023268709,0.001,60359.0,60358.0,0.1019]
[1720023269597,0.00357,60361.0,60358.0,0.1019]
[1720023269802,0.00357,60360.0,60358.0,0.1019]
[1720023270347,0.00357,60360.0,60358.0,0.1099]
[1720023271534,0.00357,60360.0,60358.0,0.0969]
[1720023271881,0.00357,60360.0,60358.0,0.1029]
[1720023272087,0.00357,60359.0,60358.0,0.1029]
[1720023273039,0.00457,60360.0,60358.0,0.1029]
[1720023273367,0.00557,60360.0,60358.0,0.1149]
[1720023274517,0.00457,60360.0,60358.0,0.1009]
[1720023274719,0.00357,60359.0,60358.0,0.012]
[1720023275078,0.00357,60359.0,60358.0,0.026]
[1720023275079,0.202353,60359.0,60358.0,0.026]
[1720023275226,0.67069269,60359.0,60358.0,0.008116]
[1720023275423,0.00357,60348.0,60344.0,0.0901]
[1720023275623,0.00357,60346.0,60344.0,0.0901]
[1720023275802,0.00357,60348.0,60344.0,0.0901]
[1720023276342,0.00357,60347.0,60344.0,0.0901]
[1720023276545,0.00357,60348.0,60344.0,0.0901]
[1720023277183,0.10357,60350.0,60344.0,0.0901]
[1720023277384,0.1,60350.0,60348.0,0.05613]
[1720023277685,0.00357,60356.0,60348.0,0.05613]
[1720023277883,0.00357,60355.0,60348.0,0.05613]
[1720023278100,0.00357,60353.0,60347.0,0.0857]
[1720023278231,0.00357,60354.0,60347.0,0.0857]
[1720023278442,0.910247,60353.0,60347.0,0.0857]
[1720023278659,0.1,60352.0,60347.0,0.0857]
[1720023278868,0.00357,60353.0,60347.0,0.0857]
[1720023279039,0.001,60348.0,60347.0,0.0857]
[1720023279442,0.00357,60353.0,60347.0,0.0857]
[1720023279873,0.00367,60353.0,60348.0,0.003]
[1720023280627,0.00367,60353.0,60347.0,0.0857]
[1720023281768,0.00357,60352.0,60347.0,0.08270314]
[1720023281989,0.001,60348.0,60347.0,0.09170314]
[1720023282155,0.00357,60352.0,60347.0,0.08270314]
[1720023282856,0.00357,60352.0,60347.0,0.08470314]
[1720023283058,0.00357,60352.0,60347.0,0.08270314]
[1720023283501,0.00357,60352.0,60347.0,0.08670314]
[1720023283702,0.00357,60352.0,60347.0,0.08470314]
[1720023284374,0.00357,60351.0,60347.0,0.08470314]
[1720023284778,0.00357,60350.0,60347.0,0.08470314]
[1720023285147,0.00357,60351.0,60347.0,0.08470314]
[1720023285480,0.00367,60353.0,60347.0,0.08270314]
[1720023285794,0.0001,60353.0,60347.0,0.08570314]
[1720023286148,0.00367,60353.0,60347.0,0.08570314]
[1720023286349,0.00367,60353.0,60347.0,0.08670314]
[1720023286557,0.00367,60353.0,60347.0,0.07543681]
[1720023286915,0.0001,60353.0,60347.0,0.06265914]
[1720023287049,0.00367,60353.0,60347.0,0.06465914]
[1720023287249,0.00367,60353.0,60347.0,0.06365914]
[1720023287452,0.08161765,60356.0,60347.0,0.05160994]
[1720023287676,0.08161765,60356.0,60347.0,0.05260994]
[1720023287874,0.694485,60355.0,60347.0,0.05460994]
[1720023288282,0.537185,60355.0,60348.0,0.0597]
[1720023288480,0.02488184,60356.0,60354.0,0.08015582]
[1720023288711,0.01196471,60365.0,60356.0,0.0597]
[1720023288931,0.0165,60366.0,60357.0,0.113]
[1720023289113,0.02528516,60365.0,60358.0,0.0597]
[1720023289346,0.0165,60366.0,60359.0,0.0597]
[1720023289583,0.0165,60366.0,60357.0,0.113]
[1720023290112,0.04429968,60366.0,60357.0,0.113]
[1720023290565,0.04429968,60366.0,60358.0,0.0903]
[1720023290763,0.04129968,60366.0,60358.0,0.0903]
[1720023291267,0.02137952,60365.0,60358.0,0.0903]
[1720023291497,0.04129968,60366.0,60358.0,0.15]
[1720023291995,0.04129968,60366.0,60358.0,0.151]
[1720023292214,0.04229968,60366.0,60358.0,0.151]
[1720023292414,0.02120406,60365.0,60358.0,0.15]
[1720023292567,0.04229968,60366.0,60358.0,0.15]
[1720023292789,0.04129968,60366.0,60358.0,0.154]
[1720023293141,0.04129968,60366.0,60358.0,0.152]
[1720023293440,0.02131879,60365.0,60358.0,0.0923]
[1720023293728,0.02132081,60364.0,60358.0,0.15]
[1720023293942,0.04129968,60366.0,60358.0,0.15]
[1720023294231,0.02134687,60365.0,60358.0,0.0923]
[1720023294429,0.0001,60365.0,60358.0,0.152]
[1720023294728,0.02134791,60364.0,60358.0,0.152]
[1720023294931,0.0001,60365.0,60358.0,0.156]
[1720023295135,0.0001,60365.0,60358.0,0.152]
[1720023295550,0.02128704,60364.0,60358.0,0.156]
[1720023295750,0.0011,60365.0,60358.0,0.16]
[1720023296024,0.02128943,60364.0,60362.0,0.0597]
[1720023296213,0.0001,60365.0,60361.0,0.2028]
[1720023296620,0.0011,60365.0,60361.0,0.2028]
[1720023296944,0.02134566,60364.0,60361.0,0.2028]
[1720023297145,0.0213944,60363.0,60361.0,0.2028]
[1720023297350,0.0021,60365.0,60361.0,0.2098]
[1720023297554,0.02139462,60364.0,60361.0,0.2098]
[1720023297751,0.02139462,60363.0,60361.0,0.2098]
[1720023297955,0.0021,60365.0,60361.0,0.2098]
[1720023298381,0.0021,60365.0,60362.0,0.0597]
[1720023298980,0.0011,60365.0,60362.0,0.0597]
[1720023299184,0.0011,60365.0,60361.0,0.2098]
[1720023299477,0.001,60364.0,60362.0,0.008]
[1720023299674,0.0001,60365.0,60362.0,0.0597]
[1720023299874,0.001,60364.0,60362.0,0.0597]
[1720023300174,0.0011,60365.0,60362.0,0.0657]
[1720023300393,0.0011,60365.0,60364.0,0.0597]
[1720023300591,0.0001,60365.0,60364.0,0.0597]
[1720023301464,0.0011,60365.0,60364.0,0.0591]
[1720023302243,0.0011,60365.0,60362.0,0.0791]
[1720023302660,0.0011,60365.0,60362.0,0.0691]
[1720023302954,0.0011,60365.0,60363.0,0.0591]
[1720023303385,0.0021,60365.0,60364.0,0.0691]
[1720023303602,0.0011,60365.0,60364.0,0.0691]
[1720023303801,0.0001,60365.0,60364.0,0.0591]
[1720023304025,0.0011,60365.0,60364.0,0.0701]
[1720023304301,0.0021,60365.0,60364.0,0.011]
[1720023304511,0.0962,60365.0,60362.0,0.01]
[1720023304721,0.1962,60365.0,60362.0,0.01]
[1720023304890,0.1952,60365.0,60362.0,0.0591]
[1720023305071,0.1952,60365.0,60363.0,0.0591]
[1720023305485,0.1001,60365.0,60363.0,0.0591]
[1720023306023,0.1,60364.0,60363.0,0.0591]
[1720023306223,0.0011,60365.0,60363.0,0.0701]
[1720023306444,0.0021,60365.0,60364.0,0.01]
[1720023306617,0.02366499,60365.0,60364.0,0.01]
[1720023306931,0.11876499,60365.0,60364.0,0.01]
[1720023307047,0.11876499,60365.0,60363.0,0.011]
[1720023307048,0.58079999,60365.0,60363.0,0.011]
[1720023307249,0.82994499,60364.0,60363.0,0.022]
[1720023307456,0.79494499,60364.0,60363.0,0.022]
[1720023307703,0.60044499,60364.0,60363.0,0.011]
[1720023307957,0.57756499,60364.0,60357.0,0.1081]
[1720023308091,0.101,60364.0,60363.0,0.013]
[1720023308290,0.0961,60364.0,60363.0,0.013]
[1720023308513,0.11792907,60364.0,60363.0,0.013]
[1720023308966,0.21792907,60364.0,60363.0,0.013]
[1720023310216,0.21692907,60364.0,60363.0,0.0895]
[1720023310706,0.12282907,60364.0,60363.0,0.2685]
[1720023310849,0.001,60364.0,60363.0,0.5538988]
[1720023311254,0.0001,60365.0,60364.0,0.2925]
[1720023311503,0.0001,60365.0,60364.0,0.4227988]
[1720023312617,0.0011,60365.0,60364.0,0.4327988]
[1720023312840,0.0011,60365.0,60364.0,0.2134]
[1720023313020,0.0001,60365.0,60364.0,0.2034]
[1720023313221,0.01863769,60365.0,60363.0,0.013]
[1720023313445,0.0011,60365.0,60364.0,0.011]
[1720023313559,0.01932075,60365.0,60364.0,0.011]
[1720023314221,0.02032075,60365.0,60364.0,0.025]
[1720023314582,0.01936324,60365.0,60364.0,0.014]
[1720023314806,0.01836324,60365.0,60361.0,0.0591]
[1720023315016,0.0021,60365.0,60364.0,0.01]
[1720023315469,0.0021,60365.0,60363.0,0.012]
[1720023315470,0.0001,60365.0,60361.0,0.0591]
[1720023315701,0.01826454,60364.0,60360.0,0.1468]
[1720023317522,0.0011,60365.0,60363.0,0.0591]
[1720023317747,0.01807618,60364.0,60361.0,0.0591]
[1720023317947,0.01808006,60363.0,60361.0,0.0691]
[1720023318086,0.0021,60365.0,60362.0,0.0591]
[1720023318304,0.01807824,60364.0,60362.0,0.0591]
[1720023318506,0.01807824,60363.0,60362.0,0.0591]
[1720023319530,0.01807824,60363.0,60362.0,0.0701]
[1720023320111,0.01807824,60363.0,60362.0,0.4321988]
[1720023320894,0.001,60364.0,60363.0,0.0591]
[1720023321112,0.0011,60365.0,60364.0,0.0591]
[1720023321318,0.01961522,60365.0,60364.0,0.4211988]
[1720023321519,0.0011,60365.0,60364.0,0.4211988]
[1720023321667,0.0011,60365.0,60364.0,0.4511988]
[1720023322242,0.0001,60370.0,60364.0,0.4511988]
[1720023322243,0.0001,60370.0,60369.0,0.0891]
[1720023322464,0.0001,60370.0,60369.0,0.4486988]
[1720023322904,0.0001,60370.0,60369.0,0.4485988]
[1720023323519,5e-05,60370.0,60369.0,0.4485988]
[1720023325136,5e-05,60370.0,60369.0,0.4605988]
[1720023325343,5e-05,60370.0,60369.0,0.4445988]
[1720023325746,5e-05,60370.0,60369.0,0.4745988]
[1720023326161,5e-05,60370.0,60369.0,0.4445988]
[1720023327192,0.00015,60370.0,60369.0,0.4445988]
[1720023328386,0.00015,60370.0,60369.0,0.4745988]
[1720023331832,0.00015,60370.0,60369.0,0.7744988]
[1720023332064,0.00084,60374.0,60373.0,0.2928]
[1720023332221,0.00084,60374.0,60373.0,0.7528988]
[1720023332466,0.00084,60374.0,60373.0,0.78945082]
[1720023332657,0.00084,60374.0,60373.0,0.48955082]
[1720023333638,0.00084,60374.0,60373.0,0.5002388]
[1720023333776,0.2377,60397.0,60390.0,0.1899]
[1720023333988,0.2377,60392.0,60390.0,0.2191988]
[1720023334579,0.2377,60392.0,60390.0,0.0589]
[1720023334783,0.2377,60392.0,60391.0,0.0589]
[1720023335202,0.3377,60392.0,60391.0,0.0589]
[1720023335508,0.3377,60392.0,60383.0,0.0845]
[1720023335509,0.3377,60392.0,60390.0,0.008]
[1720023335730,0.1,60391.0,60390.0,0.008]
[1720023335888,0.1073,60390.0,60384.0,0.2191988]
[1720023336089,0.1,60391.0,60379.0,0.476]
[1720023336090,0.2377,60385.0,60379.0,0.476]
[1720023336287,0.1642,60388.0,60379.0,0.476]
[1720023336288,0.2377,60380.0,60379.0,0.476]
[1720023336577,0.3377,60380.0,60379.0,0.0589]
[1720023337089,0.3377,60380.0,60375.0,0.1444]
[1720023337290,0.1,60379.0,60378.0,0.0589]
[1720023337492,0.1,60379.0,60378.0,0.2191988]
[1720023337940,0.1,60379.0,60378.0,0.1602988]
[1720023338517,0.1,60379.0,60378.0,0.2191988]
[1720023338723,0.1,60379.0,60378.0,0.1602988]
[1720023338923,0.1,60379.0,60378.0,0.1732988]
[1720023339453,0.1,60379.0,60378.0,0.1602988]
[1720023339660,0.1,60379.0,60378.0,0.1742988]
[1720023339899,0.2377,60381.0,60378.0,0.2331988]
[1720023340183,0.1,60380.0,60378.0,0.1742988]
[1720023340336,0.1,60380.0,60378.0,0.1882988]
[1720023341179,0.1,60380.0,60378.0,0.1742988]
[1720023341417,0.1,60380.0,60378.0,0.1712988]
[1720023341938,0.1,60380.0,60378.0,0.1602988]
[1720023342766,0.1,60380.0,60379.0,0.0589]
[1720023343517,0.1,60385.0,60379.0,0.0589]
[1720023343680,0.02247078,60384.0,60379.0,0.0589]
[1720023343881,0.02247078,60383.0,60379.0,0.0589]
[1720023344081,0.02247078,60382.0,60380.0,0.0589]
[1720023344276,0.1,60385.0,60383.0,0.0589]
[1720023344498,0.02249943,60384.0,60383.0,0.0589]
[1720023344904,0.02249943,60384.0,60383.0,0.0588]
[1720023345108,0.1,60385.0,60384.0,0.0588]
[1720023345276,0.3435,60396.0,60395.0,0.0588]
[1720023345277,0.12345666,60396.0,60395.0,0.0588]
[1720023345468,0.12207776,60396.0,60394.0,0.1429]
[1720023345706,0.12207776,60395.0,60394.0,0.1429]
[1720023345897,0.1,60395.0,60394.0,0.1429]
[1720023346098,0.12207475,60395.0,60394.0,0.1429]
[1720023346756,0.02207475,60395.0,60394.0,0.1429]
[1720023348145,0.02207475,60395.0,60394.0,0.1508]
[1720023348363,0.02290475,60395.0,60394.0,0.1508]
[1720023348967,0.02290475,60395.0,60394.0,0.1568]
[1720023349182,0.00083,60395.0,60394.0,0.1568]
[1720023349550,0.00083,60395.0,60394.0,0.3170988]
[1720023351501,0.00083,60395.0,60394.0,0.3169988]
[1720023351682,0.00083,60395.0,60394.0,0.3168988]
[1720023355711,0.00083,60395.0,60394.0,0.3468988]
[1720023355909,0.00093,60395.0,60394.0,0.3468988]
[1720023356692,0.34876973,60405.0,60404.0,0.0588]
[1720023358051,0.34876973,60405.0,60404.0,0.0587]
[1720023358253,0.13439803,60405.0,60404.0,0.0587]
[1720023358854,0.23439803,60405.0,60404.0,0.0587]
[1720023359424,0.23439803,60405.0,60404.0,0.0597]
[1720023359425,0.23539803,60405.0,60404.0,0.0597]
[1720023359996,0.23439803,60405.0,60404.0,0.0587]
[1720023360170,0.21106973,60405.0,60404.0,0.0587]
[1720023360372,0.11106973,60405.0,60404.0,0.2328988]
[1720023360511,0.11106973,60405.0,60404.0,0.2407988]
[1720023361448,0.11106973,60405.0,60404.0,0.2327988]
[1720023361653,0.11106973,60405.0,60404.0,0.2467988]
[1720023362277,0.21106973,60405.0,60404.0,0.2467988]
[1720023363874,0.44876973,60405.0,60404.0,0.1880988]
[1720023364479,0.44876973,60405.0,60404.0,0.2466988]
[1720023365072,0.44876973,60405.0,60404.0,0.2465988]
[1720023365280,0.21106973,60405.0,60404.0,0.2465988]
[1720023365483,0.21106973,60405.0,60404.0,0.4418988]